[Event "EYTCC U18 Open 2019"]
[Site "Pardubice"]
[Date "2019.07.13"]
[Round "3.32"]
[White "Emanuel, Yahav"]
[Black "Chylewski, Patryk"]
[Result "1/2-1/2"]
[ECO "B85"]
[WhiteElo "2359"]
[BlackElo "2376"]
[Annotator "NA"]
[PlyCount "84"]
[EventDate "2019.07.11"]
[EventType "swiss"]
[EventCountry "CZE"]
[SourceTitle "playchess.com"]
[Source "ChessBase"]
[SourceQuality "1"]
[WhiteTeam "Israel"]
[BlackTeam "Poland"]
[WhiteTeamCountry "ISR"]
[BlackTeamCountry "POL"]
[TimeControl "40/5400+30:1800+30"]

1. e4 {[%emt 0:00:00]} c5 {[%emt 0:00:00]} 2. Nf3 {[%emt 0:00:00]} e6 {[%emt 0:00:00]} 3. Nc3 {[%emt 0:00:05]} Nc6 {[%emt 0:00:00]} 4. d4 {[%emt 0:00:16]} cxd4 {[%emt 0:00:06]} 5. Nxd4 {[%emt 0:00:07]} Qc7 {[%emt 0:00:08]} 6. Be2 {[%emt 0:00:14]} a6 {[%emt 0:00:16]} 7. O-O {[%emt 0:00:18]} Nf6 {[%emt 0:00:08]} 8. Be3 {[%emt 0:00:20]} Be7 {[%emt 0:00:32]} 9. f4 {[%emt 0:02:34]} d6 {[%emt 0:00:10]} 10. Qe1 {[%emt 0:01:52]} O-O {[%emt 0:11:36]} 11. Qg3 {[%emt 0:01:59]} Nxd4 {[%emt 0:01:37]} 12. Bxd4 {[%emt 0:00:10]} b5 {[%emt 0:00:09]} 13. a3 {[%emt 0:08:59]} Bb7 {[%emt 0:00:43]} 14. Rad1 {[%emt 0:00:16]} Rad8 {[%emt 0:02:17]} 15. Kh1 {[%emt 0:09:12]} Rd7 {[%emt 0:04:12]} 16. Bf3 {[%emt 0:15:53]} Qd8 {[%emt 0:06:49]} 17. e5 {[%emt 0:13:14]} dxe5 {[%emt 0:03:21]} 18. fxe5 {[%emt 0:01:36]} Nh5 {[%emt 0:27:09]} 19. Qg4 {[%emt 0:00:11]} Bxf3 {[%emt 0:00:31]} 20. Rxf3 {[%emt 0:06:36]} f5 {[%emt 0:06:07]} 21. exf6 {[%emt 0:06:42]} Bxf6 {[%emt 0:01:00]} 22. Rdf1 {[%emt 0:01:05]} Rxd4 {[%emt 0:01:51]} 23. Qxh5 {[%emt 0:00:08]} Qe8 {[%emt 0:04:47]} 24. Qc5 {[%emt 0:03:03]} Qe7 {[%emt 0:02:03]} 25. Qb6 {[%emt 0:08:20]} Qd6 {[%emt 0:05:14]} 26. Qxd6 {[%emt 0:02:02]} Rxd6 {[%emt 0:00:11]} 27. Ne4 {[%emt 0:01:48]} Rd4 {[%emt 0:04:49]} 28. Re1 {[%emt 0:01:55]} Rd5 {[%emt 0:09:25]} 29. c3 {[%emt 0:03:36]} Be7 {[%emt 0:01:57]} 30. Rfe3 {[%emt 0:00:26]} Re5 {[%emt 0:02:33]} 31. g3 {[%emt 0:01:33]} Rd8 {[%emt 0:01:53]} 32. Kg2 {[%emt 0:00:48]} Rd7 {[%emt 0:01:08]} 33. R3e2 {[%emt 0:03:24]} Bd8 {[%emt 0:00:40]} 34. h4 {[%emt 0:03:10]} h6 {[%emt 0:00:29]} 35. Nf2 {[%emt 0:02:08]} Rxe2 {[%emt 0:00:15]} 36. Rxe2 {[%emt 0:00:02]} Kf7 {[%emt 0:00:42]} 37. Kf3 {[%emt 0:01:25]} Bb6 {[%emt 0:01:04]} 38. Ke4 {[%emt 0:01:21]} Bxf2 {[%emt 0:01:25]} 39. Rxf2+ {[%emt 0:00:01]} Ke7 {[%emt 0:00:08]} 40. Ke3 {[%emt 0:01:59]} Rd1 {[%emt 0:01:26]} 41. Rf4 {[%emt 0:14:28]} Re1+ {[%emt 0:07:05]} 42. Kf2 {[%emt 0:03:07]} Rb1 {[%emt 0:06:44]} 1/2-1/2

[Event "EYTCC U18 Open 2019"]
[Site "Pardubice"]
[Date "2019.07.13"]
[Round "3.33"]
[White "Gazik, Viktor"]
[Black "Ivic, Velimir"]
[Result "1/2-1/2"]
[ECO "D86"]
[WhiteElo "2525"]
[BlackElo "2510"]
[Annotator "ChessBase"]
[PlyCount "61"]
[EventDate "2019.07.11"]
[EventType "swiss"]
[EventCountry "CZE"]
[SourceTitle "playchess.com"]
[Source "ChessBase"]
[SourceQuality "1"]
[WhiteTeam "Slovakia"]
[BlackTeam "Serbia"]
[WhiteTeamCountry "SVK"]
[BlackTeamCountry "SRB"]
[TimeControl "40/5400+30:1800+30"]

1. d4 {[%emt 0:00:00]} Nf6 {[%emt 0:00:00]} 2. c4 {[%emt 0:00:00]} g6 {[%emt 0:00:00]} 3. Nc3 {[%emt 0:00:00]} d5 {[%emt 0:00:31]} 4. cxd5 {[%emt 0:00:00]} Nxd5 {[%emt 0:00:05]} 5. e4 {[%emt 0:00:11]} Nxc3 {[%emt 0:00:06]} 6. bxc3 {[%emt 0:00:08]} Bg7 {[%emt 0:00:05]} 7. Bc4 {[%emt 0:00:15]} c5 {[%emt 0:00:42]} 8. Ne2 {[%emt 0:00:19]} Nc6 {[%emt 0:00:10]} 9. Be3 {[%emt 0:00:24]} O-O {[%emt 0:00:26]} 10. O-O {[%emt 0:00:10]} b6 {[%emt 0:00:14]} 11. dxc5 {[%emt 0:23:23]} Qc7 {[%emt 0:00:06]} 12. cxb6 {[%emt 0:12:40]} axb6 {[%emt 0:00:05]} 13. Rb1 {[%emt 0:03:54]} Ne5 {[%emt 0:11:25]} 14. Bd5 {[%emt 0:03:33]} Rb8 {[%emt 0:00:39]} 15. Bf4 {[%emt 0:09:10]} Ba6 {[%emt 0:04:38]} 16. Qc2 {[%emt 0:01:38]} Qc8 {[%emt 0:34:27]} 17. Rbd1 {[%emt 0:16:28]} Rd8 {[%emt 0:04:59]} 18. Rd2 {[%emt 0:11:11]} Qc7 {[%emt 0:08:57]} 19. Bb3 {[%emt 0:13:20]} Rxd2 {[%emt 0:01:54]} 20. Qxd2 {[%emt 0:00:01]} Rd8 {[%emt 0:01:05]} 21. Qe3 {[%emt 0:00:01]} Rd3 {[%emt 0:15:22]} 22. Qc1 {[%emt 0:00:01]} Rd7 {[%emt 0:03:35]} 23. c4 {[%emt 0:01:59]} Qc6 {[%emt 0:02:00]} 24. Bxe5 {[%emt 0:02:42]} Bxe5 {[%emt 0:00:02]} 25. Qc2 {[%emt 0:00:21]} Qc5 {[%emt 0:04:01]} 26. Nc3 {[%emt 0:00:38]} Bxc3 {[%emt 0:04:20]} 27. Qxc3 {[%emt 0:00:02]} Rd4 {[%emt 0:00:08]} 28. Rd1 {[%emt 0:00:47]} Rxd1+ {[%emt 0:00:31]} 29. Bxd1 {[%emt 0:00:01]} Qxc4 {[%emt 0:00:42]} 30. Qxc4 {[%emt 0:00:11]} Bxc4 {[%emt 0:00:02]} 31. a3 {[%emt 0:00:38]} 1/2-1/2

[Event "EYTCC U18 Open 2019"]
[Site "Pardubice"]
[Date "2019.07.13"]
[Round "3.34"]
[White "Radovanovic, Mihajlo"]
[Black "Pechac, Jergus"]
[Result "1-0"]
[ECO "D38"]
[WhiteElo "2500"]
[BlackElo "2469"]
[Annotator "ChessBase"]
[PlyCount "63"]
[EventDate "2019.07.11"]
[EventType "swiss"]
[EventCountry "CZE"]
[SourceTitle "playchess.com"]
[Source "ChessBase"]
[SourceQuality "1"]
[WhiteTeam "Serbia"]
[BlackTeam "Slovakia"]
[WhiteTeamCountry "SRB"]
[BlackTeamCountry "SVK"]
[TimeControl "40/5400+30:1800+30"]

1. Nf3 {[%emt 0:00:00]} Nf6 {[%emt 0:00:17]} 2. c4 {[%emt 0:00:00]} e6 {[%emt 0:00:13]} 3. Nc3 {[%emt 0:00:18]} d5 {[%emt 0:00:05]} 4. d4 {[%emt 0:00:05]} Bb4 {[%emt 0:00:06]} 5. g3 {[%emt 0:01:56]} O-O {[%emt 0:00:23]} 6. Bg2 {[%emt 0:00:04]} dxc4 {[%emt 0:01:36]} 7. O-O Nc6 {[%emt 0:00:15]} 8. Qa4 {[%emt 0:00:23]} Nd5 {[%emt 0:01:00]} 9. Qc2 {[%emt 0:00:06]} Be7 {[%emt 0:00:37]} 10. Rd1 {[%emt 0:00:08]} Rb8 {[%emt 0:02:58]} 11. e4 {[%emt 0:00:19]} Ndb4 {[%emt 0:02:19]} 12. Qe2 {[%emt 0:00:06]} Nd3 {[%emt 0:01:57]} 13. Be3 {[%emt 0:00:06]} b5 {[%emt 0:02:10]} 14. b3 {[%emt 0:02:00]} a6 {[%emt 0:02:23]} 15. d5 {[%emt 0:02:12]} exd5 {[%emt 0:00:51]} 16. Nxd5 {[%emt 0:02:14]} Bg4 {[%emt 0:03:33]} 17. h3 {[%emt 0:03:28]} Bxf3 {[%emt 0:02:50]} 18. Qxf3 {[%emt 0:00:43]} Ncb4 {[%emt 0:00:47]} 19. bxc4 {[%emt 0:09:59]} bxc4 {[%emt 0:00:11]} 20. Nxe7+ {[%emt 0:00:17]} Qxe7 {[%emt 0:00:10]} 21. Qe2 {[%emt 0:00:12]} Rfd8 {[%emt 0:01:03]} 22. a3 {[%emt 0:04:05]} Nc6 {[%emt 0:00:06]} 23. Qc2 {[%emt 0:00:13]} Nd4 {[%emt 0:02:09]} 24. Bxd4 {[%emt 0:06:17]} Rxd4 {[%emt 0:00:23]} 25. Rab1 {[%emt 0:00:34]} Rxb1 {[%emt 0:00:48]} 26. Rxb1 {[%emt 0:00:08]} h6 {[%emt 0:00:51]} 27. Kh2 {[%emt 0:18:30]} Qxa3 {[%emt 0:02:43]} 28. Rb8+ {[%emt 0:02:17]} Kh7 {[%emt 0:00:06]} 29. e5 {[%emt 0:00:10]} Qc1 {[%emt 0:03:19]} 30. Qa4 {[%emt 0:05:27]} Nxf2 {[%emt 0:01:45]} 31. e6 {[%emt 0:00:10]} fxe6 {[%emt 0:11:23]} 32. Rf8 {[%emt 0:02:37]} 1-0

[Event "EYTCC U18 Open 2019"]
[Site "Pardubice"]
[Date "2019.07.13"]
[Round "3.35"]
[White "Haring, Filip"]
[Black "Budisavljevic, Luka"]
[Result "1/2-1/2"]
[ECO "B43"]
[WhiteElo "2334"]
[BlackElo "2351"]
[Annotator "NA"]
[PlyCount "102"]
[EventDate "2019.07.11"]
[EventType "swiss"]
[EventCountry "CZE"]
[SourceTitle "playchess.com"]
[Source "ChessBase"]
[SourceQuality "1"]
[WhiteTeam "Slovakia"]
[BlackTeam "Serbia"]
[WhiteTeamCountry "SVK"]
[BlackTeamCountry "SRB"]
[TimeControl "40/5400+30:1800+30"]

1. e4 {[%emt 0:00:00]} c5 {[%emt 0:00:00]} 2. Nf3 {[%emt 0:00:00]} e6 {[%emt 0:00:00]} 3. d4 {[%emt 0:00:19]} cxd4 {[%emt 0:00:00]} 4. Nxd4 {[%emt 0:00:06]} a6 {[%emt 0:00:00]} 5. Nc3 {[%emt 0:00:34]} b5 {[%emt 0:00:11]} 6. Bd3 {[%emt 0:01:02]} Qb6 {[%emt 0:00:05]} 7. Nf3 {[%emt 0:03:15]} Qc7 {[%emt 0:00:04]} 8. O-O {[%emt 0:01:01]} Bb7 {[%emt 0:00:04]} 9. Re1 {[%emt 0:01:18]} Be7 {[%emt 0:00:21]} 10. Qe2 {[%emt 0:06:56]} d6 {[%emt 0:09:40]} 11. Bf4 {[%emt 0:06:09]} Nf6 {[%emt 0:13:42]} 12. a4 {[%emt 0:13:45]} b4 {[%emt 0:03:25]} 13. Na2 {[%emt 0:00:08]} Nc6 {[%emt 0:00:34]} 14. c3 {[%emt 0:03:05]} bxc3 {[%emt 0:01:17]} 15. Nxc3 {[%emt 0:03:29]} O-O {[%emt 0:00:25]} 16. Rec1 {[%emt 0:03:32]} Qa5 {[%emt 0:04:29]} 17. Nd2 {[%emt 0:09:19]} Qb4 {[%emt 0:05:27]} 18. Na2 {[%emt 0:07:28]} Qxa4 {[%emt 0:15:36]} 19. Nc3 {[%emt 0:14:36]} Qb4 {[%emt 0:00:07]} 20. Be3 {[%emt 0:02:00]} d5 {[%emt 0:13:04]} 21. exd5 {[%emt 0:01:50]} exd5 {[%emt 0:00:38]} 22. Ra4 {[%emt 0:03:15]} Qd6 {[%emt 0:00:12]} 23. Nf3 {[%emt 0:01:47]} Ne5 {[%emt 0:04:41]} 24. Nxe5 {[%emt 0:07:52]} Qxe5 {[%emt 0:00:06]} 25. Bd4 {[%emt 0:01:21]} Qxe2 {[%emt 0:13:52]} 26. Nxe2 {[%emt 0:00:06]} Ne8 {[%emt 0:01:02]} 27. Rca1 {[%emt 0:01:41]} Nc7 {[%emt 0:00:24]} 28. Bb6 {[%emt 0:02:19]} Rfc8 {[%emt 0:03:03]} 29. Nd4 {[%emt 0:01:53]} g6 {[%emt 0:02:13]} 30. g3 {[%emt 0:01:56]} Bf6 {[%emt 0:00:37]} 31. Rb4 {[%emt 0:00:51]} Be7 {[%emt 0:01:54]} 32. Rba4 {[%emt 0:00:28]} Bf6 {[%emt 0:01:49]} 33. Rb4 {[%emt 0:01:03]} Bxd4 {[%emt 0:06:47]} 34. Bxd4 {[%emt 0:00:31]} Bc6 {[%emt 0:00:06]} 35. Be5 {[%emt 0:01:42]} Bb5 {[%emt 0:00:44]} 36. Bxc7 {[%emt 0:00:42]} Bxd3 {[%emt 0:00:04]} 37. Be5 {[%emt 0:00:29]} Re8 {[%emt 0:00:56]} 38. Bc3 {[%emt 0:00:31]} Rab8 {[%emt 0:00:43]} 39. Rxb8 {[%emt 0:00:34]} Rxb8 {[%emt 0:00:01]} 40. Ra5 {[%emt 0:00:25]} Bc4 {[%emt 0:00:22]} 41. Kg2 {[%emt 0:30:31]} Kf8 {[%emt 0:31:04]} 42. Kf3 {[%emt 0:00:00]} Ke7 {[%emt 0:00:00]} 43. Kf4 {[%emt 0:00:00]} f6 {[%emt 0:00:00]} 44. h4 {[%emt 0:00:00]} Rb6 {[%emt 0:00:00]} 45. Ra3 {[%emt 0:00:00]} Kd7 {[%emt 0:00:00]} 46. Bd4 {[%emt 0:00:00]} Rc6 {[%emt 0:00:00]} 47. Rc3 {[%emt 0:00:00]} Rd6 {[%emt 0:00:00]} 48. Bc5 {[%emt 0:00:00]} Rc6 {[%emt 0:00:00]} 49. Bd4 {[%emt 0:00:00]} Rd6 {[%emt 0:00:00]} 50. Bc5 {[%emt 0:00:00]} Re6 {[%emt 0:00:00]} 51. Re3 {[%emt 0:00:00]} h6 {[%emt 0:00:00] Ke4} 1/2-1/2

[Event "EYTCC U18 Open 2019"]
[Site "Pardubice"]
[Date "2019.07.13"]
[Round "3.36"]
[White "Omorjan, Dejan"]
[Black "Sahidi, Samir"]
[Result "1/2-1/2"]
[ECO "D12"]
[WhiteElo "2317"]
[BlackElo "2369"]
[Annotator "NA"]
[PlyCount "248"]
[EventDate "2019.07.11"]
[EventType "swiss"]
[EventCountry "CZE"]
[SourceTitle "playchess.com"]
[Source "ChessBase"]
[SourceQuality "1"]
[WhiteTeam "Serbia"]
[BlackTeam "Slovakia"]
[WhiteTeamCountry "SRB"]
[BlackTeamCountry "SVK"]
[TimeControl "40/5400+30:1800+30"]

1. d4 {[%emt 0:00:00]} Nf6 {[%emt 0:00:00]} 2. c4 {[%emt 0:00:00]} c6 {[%emt 0:02:28]} 3. Nf3 {[%emt 0:00:08]} d5 {[%emt 0:00:05]} 4. e3 {[%emt 0:00:13]} Bf5 {[%emt 0:01:35]} 5. Nc3 {[%emt 0:00:17]} e6 {[%emt 0:00:16]} 6. Nh4 {[%emt 0:00:09]} Bg4 {[%emt 0:01:46]} 7. Qb3 {[%emt 0:06:14]} Qb6 {[%emt 0:05:18]} 8. h3 {[%emt 0:02:53]} Bh5 {[%emt 0:01:46]} 9. cxd5 {[%emt 0:10:02]} Qxb3 {[%emt 0:05:57]} 10. axb3 {[%emt 0:00:07]} Nxd5 {[%emt 0:01:25]} 11. Nxd5 {[%emt 0:02:52]} cxd5 {[%emt 0:08:35]} 12. Bb5+ {[%emt 0:07:18]} Nc6 {[%emt 0:02:40]} 13. Bd2 {[%emt 0:16:19]} Kd7 {[%emt 0:05:00]} 14. g4 {[%emt 0:12:02]} Bg6 {[%emt 0:00:27]} 15. Nxg6 {[%emt 0:02:12]} hxg6 {[%emt 0:00:17]} 16. f4 {[%emt 0:02:20]} Bd6 {[%emt 0:07:27]} 17. Kf2 {[%emt 0:03:18]} a6 {[%emt 0:03:45]} 18. Bd3 {[%emt 0:01:30]} Rh4 {[%emt 0:02:26]} 19. Ra4 {[%emt 0:03:33]} Rah8 {[%emt 0:02:49]} 20. Kg2 {[%emt 0:01:48]} Bc7 {[%emt 0:18:35]} 21. Be1 {[%emt 0:02:49]} R4h6 {[%emt 0:02:02]} 22. Ra1 {[%emt 0:10:29]} Na7 {[%emt 0:01:32]} 23. h4 {[%emt 0:02:26]} Nc8 {[%emt 0:02:20]} 24. h5 {[%emt 0:02:47]} Ne7 {[%emt 0:03:24]} 25. Bh4 {[%emt 0:04:49]} f6 {[%emt 0:03:21]} 26. b4 {[%emt 0:02:34]} Rc8 {[%emt 0:05:44]} 27. hxg6 {[%emt 0:00:52]} Nxg6 {[%emt 0:00:21]} 28. Bg3 {[%emt 0:01:49]} Rxh1 {[%emt 0:01:13]} 29. Rxh1 {[%emt 0:00:04]} Nf8 {[%emt 0:00:26]} 30. b5 {[%emt 0:00:27]} axb5 {[%emt 0:00:58]} 31. Bxb5+ {[%emt 0:00:05]} Kd8 {[%emt 0:00:12]} 32. Be1 {[%emt 0:01:42]} Bd6 {[%emt 0:00:31]} 33. Bc3 {[%emt 0:00:23]} Ra8 {[%emt 0:00:31]} 34. Kf3 {[%emt 0:00:36]} f5 {[%emt 0:00:57]} 35. gxf5 {[%emt 0:00:40]} exf5 {[%emt 0:00:08]} 36. Bd3 {[%emt 0:00:42]} g6 {[%emt 0:00:06]} 37. Bc2 {[%emt 0:00:23]} Kd7 {[%emt 0:02:22]} 38. Bb3 {[%emt 0:00:29]} Ke6 {[%emt 0:00:06]} 39. Rg1 {[%emt 0:00:38]} Rd8 {[%emt 0:01:16]} 40. Ke2 {[%emt 0:01:04]} Rd7 {[%emt 0:02:21]} 41. Kd3 {[%emt 0:05:02]} Rh7 {[%emt 0:04:15]} 42. Bd2 {[%emt 0:04:37]} Rh2 {[%emt 0:03:31]} 43. Ba4 {[%emt 0:03:46]} Rh6 {[%emt 0:02:21]} 44. Ba5 {[%emt 0:06:41]} Rh3 {[%emt 0:04:54]} 45. Kd2 {[%emt 0:02:31]} Rh2+ {[%emt 0:00:13]} 46. Kc3 {[%emt 0:00:59]} Re2 {[%emt 0:00:35]} 47. Rg3 {[%emt 0:05:42]} g5 {[%emt 0:01:02]} 48. Rxg5 {[%emt 0:01:36]} Rxe3+ {[%emt 0:00:05]} 49. Kc2 {[%emt 0:00:12]} Bxf4 {[%emt 0:00:49]} 50. Rg7 {[%emt 0:00:59]} Re2+ {[%emt 0:01:25]} 51. Kb1 {[%emt 0:00:34]} Bd6 {[%emt 0:05:19]} 52. Rxb7 {[%emt 0:01:03]} f4 {[%emt 0:00:04]} 53. Bd1 {[%emt 0:00:49]} Rg2 {[%emt 0:00:55]} 54. Bh5 {[%emt 0:01:38]} Nd7 {[%emt 0:01:15]} 55. Bd8 {[%emt 0:00:50]} Rg7 {[%emt 0:04:11]} 56. Kc2 {[%emt 0:00:51]} Be7 {[%emt 0:00:32]} 57. Bxe7 {[%emt 0:00:34]} Kxe7 {[%emt 0:00:07]} 58. Kd2 {[%emt 0:00:33]} Rg2+ {[%emt 0:01:36]} 59. Ke1 {[%emt 0:00:18]} Kd6 {[%emt 0:01:16]} 60. Bf3 {[%emt 0:00:51]} Rg5 {[%emt 0:00:56]} 61. Ra7 {[%emt 0:00:35]} Kc6 {[%emt 0:01:14]} 62. Ke2 {[%emt 0:00:29]} Rg7 {[%emt 0:01:35]} 63. b4 {[%emt 0:00:29]} Kb6 {[%emt 0:02:01]} 64. Ra8 {[%emt 0:00:33]} Re7+ {[%emt 0:00:40]} 65. Kf1 {[%emt 0:00:16]} Nf6 {[%emt 0:00:17]} 66. Rb8+ {[%emt 0:00:49]} Kc7 {[%emt 0:01:18]} 67. Rb5 {[%emt 0:00:36]} Re3 {[%emt 0:03:26]} 68. Bxd5 {[%emt 0:00:30]} f3 {[%emt 0:00:15]} 69. Bxf3 {[%emt 0:00:27]} Rxf3+ {[%emt 0:00:07]} 70. Ke2 {[%emt 0:00:10]} Rh3 {[%emt 0:00:43]} 71. Rc5+ {[%emt 0:00:18]} Kb6 {[%emt 0:00:31]} 72. Re5 {[%emt 0:00:36]} Nd7 {[%emt 0:00:18]} 73. Rg5 {[%emt 0:00:17]} Rb3 {[%emt 0:00:40]} 74. b5 {[%emt 0:00:12]} Ka5 {[%emt 0:00:16]} 75. Kd2 {[%emt 0:00:34]} Nb6 {[%emt 0:00:21]} 76. Kc2 {[%emt 0:00:12]} Rh3 {[%emt 0:00:30]} 77. d5 {[%emt 0:00:32]} Kxb5 {[%emt 0:00:15]} 78. d6+ {[%emt 0:00:07]} Kc6 {[%emt 0:00:04]} 79. d7 {[%emt 0:00:09]} Nxd7 {[%emt 0:00:08]} 80. Kd2 {[%emt 0:00:19]} Nc5 {[%emt 0:00:04]} 81. Rg6+ {[%emt 0:00:14]} Kd5 {[%emt 0:00:09]} 82. Rg8 {[%emt 0:00:21]} Ne6 {[%emt 0:02:56]} 83. Re8 {[%emt 0:00:33]} Rf3 {[%emt 0:01:38]} 84. Ra8 {[%emt 0:00:45]} Ke4 {[%emt 0:00:18]} 85. Re8 {[%emt 0:00:27]} Rf6 {[%emt 0:00:06]} 86. Re7 {[%emt 0:00:29]} Rh6 {[%emt 0:00:16]} 87. Re8 {[%emt 0:00:23]} Kd4 {[%emt 0:00:06]} 88. Ke2 {[%emt 0:00:40]} Nf4+ {[%emt 0:00:37]} 89. Kf3 {[%emt 0:00:13]} Nd5 {[%emt 0:00:02]} 90. Rd8 {[%emt 0:00:30]} Re6 {[%emt 0:00:29]} 91. Rd7 {[%emt 0:00:40]} Rf6+ {[%emt 0:00:14]} 92. Ke2 {[%emt 0:00:28]} Rb6 {[%emt 0:02:12]} 93. Rd8 {[%emt 0:00:27]} Rb3 {[%emt 0:00:14]} 94. Kf2 {[%emt 0:00:25]} Rd3 {[%emt 0:01:30]} 95. Kg2 {[%emt 0:00:31]} Ke3 {[%emt 0:00:14]} 96. Re8+ {[%emt 0:00:13]} Kd2 {[%emt 0:00:07]} 97. Kf2 {[%emt 0:00:35]} Nc3 {[%emt 0:00:44]} 98. Re7 {[%emt 0:00:29]} Nd1+ {[%emt 0:00:09]} 99. Kg2 {[%emt 0:00:22]} Ne3+ {[%emt 0:00:05]} 100. Kf2 {[%emt 0:00:20]} Nf5 {[%emt 0:00:53]} 101. Ra7 {[%emt 0:00:21]} Nd4 {[%emt 0:00:08]} 102. Ra2+ {[%emt 0:00:20]} Nc2 {[%emt 0:00:07]} 103. Rb2 {[%emt 0:00:31]} Ra3 {[%emt 0:00:36]} 104. Rb8 {[%emt 0:00:52]} Nd4 {[%emt 0:00:15]} 105. Re8 {[%emt 0:00:42]} Rf3+ {[%emt 0:00:14]} 106. Kg2 {[%emt 0:00:13]} Kd3 {[%emt 0:01:15]} 107. Re7 {[%emt 0:00:26]} Rf8 {[%emt 0:00:27]} 108. Rd7 {[%emt 0:00:23]} Rf6 {[%emt 0:00:37]} 109. Rd8 {[%emt 0:00:11]} Ke3 {[%emt 0:00:06]} 110. Re8+ {[%emt 0:00:30]} Ne6 {[%emt 0:00:02]} 111. Ra8 {[%emt 0:01:14]} Rg6+ {[%emt 0:00:47]} 112. Kh3 {[%emt 0:00:54]} Nc5 {[%emt 0:00:50]} 113. Kh4 {[%emt 0:00:39]} Ne4 {[%emt 0:00:19]} 114. Kh5 {[%emt 0:00:23]} Rg1 {[%emt 0:00:41]} 115. Kh6 {[%emt 0:01:04]} Kf4 {[%emt 0:00:23]} 116. Ra4 {[%emt 0:00:37]} Ke5 {[%emt 0:04:30]} 117. Ra5+ {[%emt 0:00:08]} Ke6 {[%emt 0:00:05]} 118. Ra6+ {[%emt 0:00:07]} Nd6 {[%emt 0:00:13]} 119. Kh5 {[%emt 0:00:15]} Kf5 {[%emt 0:00:25]} 120. Ra5+ {[%emt 0:00:23]} Kf4 {[%emt 0:00:09]} 121. Ra4+ {[%emt 0:00:12]} Ne4 {[%emt 0:00:16]} 122. Kh6 {[%emt 0:00:12]} Rg8 {[%emt 0:00:49]} 123. Kh7 {[%emt 0:00:16]} Re8 {[%emt 0:00:04]} 124. Kg6 {[%emt 0:00:26]} Re6+ {[%emt 0:00:45]} 1/2-1/2

[Event "EYTCC U18 Open 2019"]
[Site "Pardubice"]
[Date "2019.07.14"]
[Round "4.1"]
[White "Gumularz, Szymon"]
[Black "Zarubitski, Viachaslau"]
[Result "1/2-1/2"]
[ECO "A11"]
[WhiteElo "2502"]
[BlackElo "2424"]
[Annotator "ChessBase"]
[PlyCount "72"]
[EventDate "2019.07.11"]
[EventType "swiss"]
[EventCountry "CZE"]
[SourceTitle "playchess.com"]
[Source "ChessBase"]
[SourceQuality "1"]
[WhiteTeam "Poland"]
[BlackTeam "Belarus"]
[WhiteTeamCountry "POL"]
[BlackTeamCountry "BLR"]
[TimeControl "40/5400+30:1800+30"]

1. c4 {[%emt 0:00:00]} c6 {[%emt 0:00:00]} 2. d4 {[%emt 0:00:00]} d5 {[%emt 0:00:00]} 3. Nc3 {[%emt 0:00:03]} dxc4 {[%emt 0:00:09]} 4. e3 {[%emt 0:00:05]} b5 {[%emt 0:00:06]} 5. a4 {[%emt 0:01:19]} b4 {[%emt 0:00:04]} 6. Ne4 {[%emt 0:00:16]} Qd5 {[%emt 0:00:05]} 7. Ng3 {[%emt 0:00:20]} Nf6 {[%emt 0:01:09]} 8. Be2 {[%emt 0:00:05]} e5 {[%emt 0:00:03]} 9. Nf3 {[%emt 0:06:11]} exd4 {[%emt 0:00:06]} 10. exd4 {[%emt 0:20:01]} Bd6 {[%emt 0:12:53]} 11. Nf1 {[%emt 0:00:18]} Ba6 {[%emt 0:01:05]} 12. Ne3 {[%emt 0:02:43]} Qe6 {[%emt 0:00:18]} 13. O-O {[%emt 0:04:06]} O-O {[%emt 0:17:14]} 14. Ng5 {[%emt 0:05:56]} Qd7 {[%emt 0:08:34]} 15. Nxc4 {[%emt 0:06:28]} Qc7 {[%emt 0:00:52]} 16. Nf3 {[%emt 0:03:19]} Nbd7 {[%emt 0:01:21]} 17. Be3 {[%emt 0:02:18]} Nd5 {[%emt 0:02:55]} 18. Rc1 {[%emt 0:01:48]} Bf4 {[%emt 0:22:52]} 19. Re1 {[%emt 0:06:43]} Nxe3 {[%emt 0:03:28]} 20. fxe3 {[%emt 0:07:38]} Bh6 {[%emt 0:00:53]} 21. Qb3 {[%emt 0:00:04]} Bxc4 {[%emt 0:02:53]} 22. Bxc4 {[%emt 0:02:24]} Qa5 {[%emt 0:05:00]} 23. Rf1 {[%emt 0:01:05]} Rae8 {[%emt 0:06:36]} 24. Rce1 {[%emt 0:01:49]} Re7 {[%emt 0:00:19]} 25. e4 {[%emt 0:03:53]} Kh8 {[%emt 0:01:58]} 26. Kh1 {[%emt 0:14:31]} g6 {[%emt 0:02:04]} 27. e5 {[%emt 0:01:15]} Nb6 {[%emt 0:00:30]} 28. Ra1 {[%emt 0:00:17]} Nd5 {[%emt 0:01:37]} 29. Bxd5 {[%emt 0:01:48]} cxd5 {[%emt 0:00:00]} 30. Rf2 {[%emt 0:00:20]} Rc8 {[%emt 0:00:29]} 31. Raf1 {[%emt 0:01:39]} Rc4 {[%emt 0:02:30]} 32. h3 {[%emt 0:04:19]} Kg8 {[%emt 0:00:56]} 33. Rd1 {[%emt 0:01:08]} Rec7 {[%emt 0:00:22]} 34. Nh2 {[%emt 0:00:40]} Qb6 {[%emt 0:03:39]} 35. Ng4 {[%emt 0:00:18]} Bg5 {[%emt 0:00:10]} 36. Qd3 {[%emt 0:01:46]} Rc1 {[%emt 0:00:51]} 1/2-1/2

[Event "EYTCC U18 Open 2019"]
[Site "Pardubice"]
[Date "2019.07.14"]
[Round "4.2"]
[White "Badelka, Olga"]
[Black "Teclaf, Pawel"]
[Result "1/2-1/2"]
[ECO "D17"]
[WhiteElo "2386"]
[BlackElo "2454"]
[Annotator "ChessBase"]
[PlyCount "60"]
[EventDate "2019.07.11"]
[EventType "swiss"]
[EventCountry "CZE"]
[SourceTitle "playchess.com"]
[Source "ChessBase"]
[SourceQuality "1"]
[WhiteTeam "Belarus"]
[BlackTeam "Poland"]
[WhiteTeamCountry "BLR"]
[BlackTeamCountry "POL"]
[TimeControl "40/5400+30:1800+30"]

1. c4 {[%emt 0:00:00]} c6 {[%emt 0:00:13]} 2. d4 {[%emt 0:00:21]} d5 {[%emt 0:00:02]} 3. Nf3 {[%emt 0:00:07]} Nf6 {[%emt 0:00:03]} 4. Nc3 {[%emt 0:00:07]} dxc4 {[%emt 0:00:03]} 5. a4 {[%emt 0:00:21]} Bf5 {[%emt 0:00:29]} 6. Ne5 {[%emt 0:01:52]} Nbd7 {[%emt 0:02:29]} 7. Nxc4 {[%emt 0:00:07]} Nb6 {[%emt 0:05:21]} 8. Ne5 {[%emt 0:00:08]} a5 {[%emt 0:02:11]} 9. f3 {[%emt 0:01:10]} Nfd7 {[%emt 0:18:12]} 10. e4 {[%emt 0:01:50]} Nxe5 {[%emt 0:03:53]} 11. exf5 {[%emt 0:00:53]} Ned7 {[%emt 0:03:11]} 12. d5 {[%emt 0:05:02]} Nf6 {[%emt 0:09:08]} 13. dxc6 {[%emt 0:05:32]} Qxd1+ {[%emt 0:00:16]} 14. Nxd1 {[%emt 0:05:40]} bxc6 {[%emt 0:00:03]} 15. Bd2 {[%emt 0:01:40]} Kd7 {[%emt 0:11:01]} 16. Nf2 {[%emt 0:01:39]} e6 {[%emt 0:01:55]} 17. fxe6+ {[%emt 0:05:52]} Kxe6 {[%emt 0:01:01]} 18. Nd3 {[%emt 0:05:50]} Nfd5 {[%emt 0:02:20]} 19. Rc1 {[%emt 0:02:31]} Nxa4 {[%emt 0:08:40]} 20. Rxc6+ {[%emt 0:09:12]} Bd6 {[%emt 0:00:02]} 21. Nf4+ {[%emt 0:10:03]} Kd7 {[%emt 0:00:14]} 22. Bb5 {[%emt 0:00:25]} Bxf4 {[%emt 0:00:10]} 23. Bxa4 {[%emt 0:03:13]} Ke7 {[%emt 0:07:49]} 24. Bb3 {[%emt 0:16:09]} Bxd2+ {[%emt 0:02:56]} 25. Kxd2 {[%emt 0:00:04]} Rhd8 {[%emt 0:01:09]} 26. Re1+ {[%emt 0:05:37]} Kf8 {[%emt 0:00:03]} 27. Bxd5 {[%emt 0:00:40]} Rxd5+ {[%emt 0:00:01]} 28. Kc3 {[%emt 0:01:55]} Rb8 {[%emt 0:07:07]} 29. Rc7 {[%emt 0:04:13]} Rdb5 {[%emt 0:00:34]} 30. Ree7 {[%emt 0:01:49]} Rb3+ {[%emt 0:00:11]} 1/2-1/2